bitfinex/quotes_BTCUSD_20240810
["timestamp","ask_amount","ask_price","bid_price","bid_amount"]
[1723269980902,0.000832,60453.0,60452.0,0.6326409]
[1723269981117,0.001832,60453.0,60452.0,0.6326409]
[1723269981482,0.001832,60453.0,60452.0,0.4672209]
[1723269982094,0.001832,60453.0,60452.0,0.6326409]
[1723269982311,0.00175033,60453.0,60452.0,0.6326409]
[1723269982504,0.00175033,60453.0,60452.0,0.63262996]
[1723269985280,0.00175033,60453.0,60452.0,0.96347001]
[1723269985426,0.00175033,60453.0,60452.0,0.63263001]
[1723269986211,0.00175033,60453.0,60452.0,0.49529136]
[1723269986417,0.00175033,60453.0,60452.0,0.63263001]
[1723269987914,0.00175033,60453.0,60452.0,0.96347001]
[1723269988117,0.00175033,60453.0,60452.0,1.21173638]
[1723269989972,0.00175033,60453.0,60452.0,1.21210586]
[1723269990573,0.00175033,60453.0,60452.0,1.22209744]
[1723269991550,0.00175033,60453.0,60452.0,1.55293744]
[1723269991786,0.00175033,60453.0,60452.0,1.8258247]
[1723269991963,0.00175033,60453.0,60452.0,2.16963236]
[1723269992209,0.00175033,60453.0,60452.0,2.24405099]
[1723269992366,0.00175033,60453.0,60452.0,2.24400308]
[1723269992577,0.00175033,60453.0,60452.0,2.25400308]
[1723269992786,0.00175033,60453.0,60452.0,2.16963236]
[1723269992936,0.00175033,60453.0,60452.0,2.17563236]
[1723269993390,0.00175033,60453.0,60452.0,2.07215861]
[1723269993391,0.00075033,60453.0,60452.0,2.07215861]
[1723269993562,0.00075033,60453.0,60452.0,2.07615861]
[1723269993770,0.00075033,60453.0,60452.0,1.8358247]
[1723269993959,0.00075033,60453.0,60452.0,2.07614902]
[1723269994391,0.00075033,60453.0,60452.0,1.90448879]
[1723269994590,0.00075033,60453.0,60452.0,1.8358247]
[1723269994767,0.00075033,60453.0,60452.0,1.90448878]
[1723269994967,0.00075033,60453.0,60452.0,2.07614432]
[1723269996658,0.00075033,60453.0,60452.0,1.50780294]
[1723269996783,0.00075033,60453.0,60452.0,2.07554159]
[1723269997941,0.00075033,60453.0,60452.0,2.18908083]
[1723269998144,0.00075033,60453.0,60452.0,2.62339247]
[1723269998345,0.00075033,60453.0,60452.0,2.64639247]
[1723269998578,0.00075033,60453.0,60452.0,2.65639247]
[1723269998780,0.00075033,60453.0,60452.0,2.7307643]
[1723269998915,0.00075033,60453.0,60452.0,3.20839247]
[1723269999116,0.00075033,60453.0,60452.0,3.44634552]
[1723269999323,0.00075033,60453.0,60452.0,3.32330657]
[1723269999520,0.00175033,60453.0,60452.0,3.45913975]
[1723269999935,0.00175033,60453.0,60452.0,3.45513975]
[1723270000132,0.00175033,60453.0,60452.0,3.46013975]
[1723270000537,0.00175033,60453.0,60452.0,3.33630657]
[1723270000741,0.00175033,60453.0,60452.0,3.33130657]
[1723270000933,0.00075033,60453.0,60452.0,3.18279205]
[1723270001142,0.00075033,60453.0,60452.0,3.34709629]
[1723270001540,0.00075033,60453.0,60452.0,3.41912148]
[1723270001852,0.00075033,60453.0,60452.0,3.43312148]
[1723270002053,0.00075033,60453.0,60452.0,3.43312432]
[1723270002415,0.00075033,60453.0,60452.0,3.44712432]
[1723270002859,0.00075033,60453.0,60452.0,3.44512432]
[1723270003241,0.00075033,60453.0,60452.0,3.43112432]
[1723270003458,0.00075033,60453.0,60452.0,3.33209629]
[1723270003659,0.00075033,60453.0,60452.0,3.34809629]
[1723270003881,0.00075033,60453.0,60452.0,3.44712432]
[1723270004085,0.00075033,60453.0,60452.0,3.41912432]
[1723270004516,0.00075033,60453.0,60452.0,3.44712432]
[1723270004912,0.00075033,60453.0,60452.0,3.37846373]
[1723270005112,0.00075033,60453.0,60452.0,3.44711595]
[1723270005517,0.00075033,60453.0,60452.0,3.34808792]
[1723270006214,0.00075033,60453.0,60452.0,3.34891333]
[1723270006592,0.00075033,60453.0,60452.0,3.42315387]
[1723270009033,0.00075033,60453.0,60452.0,3.25125639]
[1723270009250,0.00075033,60453.0,60452.0,3.4228873]
[1723270009447,0.00075033,60453.0,60452.0,3.25125639]
[1723270009608,0.00075033,60453.0,60452.0,3.42290997]
[1723270012282,0.00075033,60453.0,60452.0,3.75374997]
[1723270012496,0.000832,60465.0,60464.0,1.157712]
[1723270012710,0.000832,60465.0,60464.0,1.89067967]
[1723270012929,0.000832,60465.0,60464.0,1.85818657]
[1723270013137,0.000832,60465.0,60464.0,2.29064575]
[1723270013349,0.000832,60465.0,60464.0,2.62142075]
[1723270014081,0.000832,60465.0,60464.0,2.63242075]
[1723270016360,0.000832,60465.0,60464.0,2.64249801]
[1723270016961,0.000832,60465.0,60464.0,2.64257143]
[1723270019717,0.000832,60465.0,60464.0,2.65257143]
[1723270019913,0.000832,60465.0,60464.0,2.64257143]
[1723270021086,0.000832,60465.0,60464.0,2.64257133]
[1723270021228,0.000832,60465.0,60464.0,2.14139165]
[1723270021429,0.000832,60465.0,60464.0,2.6425467]
[1723270022238,0.000832,60465.0,60464.0,2.6525467]
[1723270022634,0.000832,60465.0,60464.0,3.27453759]
[1723270023232,0.000832,60465.0,60464.0,3.62531259]
[1723270023465,0.1387,60484.0,60477.0,0.0803]
[1723270023718,0.1387,60484.0,60483.0,0.496006]
[1723270023833,0.1387,60484.0,60483.0,0.79709962]
[1723270024052,0.1387,60484.0,60483.0,1.14938544]
[1723270024259,0.1387,60484.0,60483.0,0.81871444]
[1723270025278,0.1387,60484.0,60483.0,0.81971444]
[1723270026430,0.1387,60484.0,60483.0,1.15038544]
[1723270027405,0.1387,60484.0,60483.0,0.81971444]
[1723270027745,0.80741,60495.0,60488.0,0.495966]
[1723270027746,0.0609,60489.0,60488.0,0.495966]
[1723270027956,0.10560675,60490.0,60489.0,0.495957]
[1723270027957,0.0797,60490.0,60489.0,0.495957]
[1723270028082,0.0797,60490.0,60489.0,0.99040992]
[1723270028284,0.0797,60490.0,60489.0,1.14925401]
[1723270028720,0.1406,60494.0,60489.0,0.65329701]
[1723270028976,0.1406,60494.0,60491.0,0.165313]
[1723270029107,0.1406,60494.0,60492.0,0.3025877]
[1723270029307,0.1406,60494.0,60493.0,0.1372787]
[1723270029530,0.1406,60494.0,60493.0,0.15884053]
[1723270030020,0.305905,60494.0,60493.0,0.15884053]
[1723270030172,0.636516,60494.0,60493.0,0.02156183]
[1723270030429,0.967127,60494.0,60493.0,0.02156183]
[1723270030563,0.1406,60488.0,60485.0,0.165328]
[1723270030768,0.1406,60487.0,60486.0,0.30108273]
[1723270031007,0.1406,60487.0,60486.0,0.3226508]
[1723270031206,0.2542,60487.0,60486.0,0.3226508]
[1723270031463,0.2542,60487.0,60486.0,0.35070999]
[1723270031663,0.2542,60487.0,60486.0,0.48797962]
[1723270032126,0.2542,60487.0,60486.0,0.48797946]
[1723270032358,0.750173,60487.0,60486.0,0.15883754]
[1723270032619,1.11075971,60487.0,60486.0,0.02156807]
[1723270032817,1.11075971,60487.0,60480.0,0.165342]
[1723270032818,0.1406,60483.0,60480.0,0.165342]
[1723270033009,0.2542,60482.0,60481.0,0.30110106]
[1723270033217,0.2542,60482.0,60481.0,0.32266546]
[1723270033432,0.2542,60482.0,60481.0,0.32266621]
[1723270033817,0.750214,60482.0,60481.0,0.15885129]
[1723270033989,0.419538,60482.0,60481.0,0.0215644]
[1723270034387,0.1406,60480.0,60477.0,0.165351]
[1723270034712,0.1933,60479.0,60478.0,0.30110453]
[1723270034911,0.2542,60479.0,60478.0,0.30110453]
[1723270035456,0.2542,60479.0,60478.0,0.30110537]
[1723270036266,0.2552,60479.0,60478.0,0.30110537]
[1723270036677,0.2552,60479.0,60469.0,0.330746]
[1723270036678,0.165369,60471.0,60466.0,0.05788094]
[1723270036881,0.6159181,60479.0,60466.0,0.05788094]
[1723270036882,0.0609,60468.0,60467.0,0.30111815]
[1723270037685,0.1406,60468.0,60467.0,0.30111815]
[1723270038238,0.1416,60468.0,60467.0,0.30111815]
[1723270038433,0.1406,60468.0,60467.0,0.30111815]
[1723270038822,0.1416,60468.0,60467.0,0.30111815]
[1723270039025,0.1416,60468.0,60467.0,0.32919392]
[1723270039227,0.1416,60468.0,60467.0,0.79726374]
[1723270039515,0.1436,60468.0,60467.0,0.46650574]
[1723270040145,0.1416,60468.0,60467.0,0.46650574]
[1723270040367,0.1436,60468.0,60467.0,0.46650574]
[1723270040789,0.1436,60468.0,60467.0,0.48809437]
[1723270041241,0.1426,60468.0,60467.0,0.48809437]
[1723270041450,0.1436,60468.0,60467.0,0.48809437]
[1723270041649,0.1436,60468.0,60467.0,0.81885237]
[1723270041817,0.001,60468.0,60467.0,0.48809437]
[1723270042037,0.003,60468.0,60467.0,0.48809437]
[1723270042623,0.001,60468.0,60467.0,1.14961037]
[1723270042821,0.003,60468.0,60467.0,1.14961037]
[1723270043028,0.003,60468.0,60467.0,1.14960299]
[1723270043444,0.003,60468.0,60467.0,1.01229855]
[1723270043635,0.001,60468.0,60467.0,0.8188426]
[1723270044354,0.16536,60474.0,60469.0,0.165371]
[1723270044577,0.16536,60474.0,60470.0,0.30111697]
[1723270044848,0.309456,60476.0,60471.0,0.13730205]
[1723270045123,0.165358,60475.0,60472.0,0.32274411]
[1723270045363,0.165358,60475.0,60473.0,0.13730205]
[1723270045544,0.165358,60475.0,60473.0,0.16381492]
[1723270045762,0.165358,60475.0,60474.0,0.02162535]
[1723270046399,0.168358,60475.0,60474.0,0.02162535]
[1723270046849,0.165358,60475.0,60474.0,0.02162535]
[1723270047249,0.168358,60475.0,60474.0,0.02262535]
[1723270048175,0.172358,60475.0,60474.0,0.02262535]
[1723270048342,0.168358,60475.0,60474.0,0.02262535]
[1723270048683,0.503073,60475.0,60474.0,0.02362535]
[1723270048937,0.503073,60475.0,60474.0,0.002]
[1723270048938,0.915688,60475.0,60474.0,0.002]
[1723270049173,0.977888,60475.0,60474.0,0.002]
[1723270049386,1.00793675,60475.0,60474.0,0.002]
[1723270050195,0.977888,60475.0,60474.0,0.002]
[1723270050413,1.00799725,60475.0,60474.0,0.002]
[1723270051060,1.00399725,60475.0,60474.0,0.001]
[1723270051551,1.00799725,60475.0,60474.0,0.002]
[1723270052186,0.974888,60475.0,60474.0,0.001]
[1723270052404,1.00500638,60475.0,60474.0,0.001]
[1723270052647,1.00800638,60475.0,60474.0,0.002]
[1723270053056,1.00500638,60475.0,60474.0,0.001]
[1723270053460,1.00800638,60475.0,60474.0,0.002]
[1723270053925,1.00791214,60475.0,60474.0,0.002]
[1723270054556,1.00791213,60475.0,60474.0,0.002]
[1723270055295,1.00789824,60475.0,60474.0,0.002]
[1723270057642,0.977888,60475.0,60474.0,0.002]
[1723270058722,1.00794845,60475.0,60474.0,0.002]
[1723270059825,0.53313345,60475.0,60474.0,0.002]
[1723270060489,0.503073,60475.0,60474.0,0.02365227]
[1723270061607,0.503073,60475.0,60474.0,0.02165227]
[1723270061608,0.496073,60475.0,60474.0,0.02165227]
[1723270061810,0.499073,60475.0,60474.0,0.02365227]
[1723270062107,0.52909013,60475.0,60474.0,0.02165227]
[1723270062405,0.52609013,60475.0,60474.0,0.15895751]
[1723270062606,0.503904,60475.0,60474.0,0.13730524]
[1723270062769,0.499904,60475.0,60474.0,0.15895751]
[1723270062967,0.52692146,60475.0,60474.0,0.15895736]
[1723270063166,0.499904,60475.0,60474.0,0.15895736]
[1723270063373,0.53294461,60475.0,60474.0,0.15895736]
[1723270070416,0.53297562,60475.0,60474.0,0.02165227]
[1723270070642,0.53297562,60475.0,60474.0,0.13730471]
[1723270070841,0.53297562,60475.0,60469.0,0.241073]
[1723270070842,0.165363,60473.0,60469.0,0.241073]
[1723270071040,0.03007163,60472.0,60470.0,0.30112006]
[1723270071386,0.03007163,60472.0,60471.0,0.13730514]
[1723270071387,0.19543663,60472.0,60471.0,0.13730514]
[1723270071539,0.19543663,60472.0,60471.0,0.16381492]
[1723270071756,0.52616763,60472.0,60471.0,0.13730515]
[1723270071962,0.60176763,60472.0,60471.0,0.13730515]
[1723270073685,0.60176763,60472.0,60471.0,0.13830515]
[1723270073886,0.60176763,60472.0,60471.0,0.13730515]
[1723270074084,0.16537,60471.0,60466.0,0.3624196]
[1723270074249,0.1135,60469.0,60467.0,0.30112185]
[1723270074454,0.1135,60469.0,60468.0,0.13730693]
[1723270074689,0.1135,60469.0,60468.0,0.30112185]
[1723270077535,0.1155,60469.0,60468.0,0.16381492]
[1723270077686,0.1155,60469.0,60468.0,0.30112185]
[1723270077687,0.1175,60469.0,60468.0,0.30112185]
[1723270078063,0.1175,60469.0,60468.0,0.54219785]
[1723270078064,0.004,60469.0,60468.0,0.54219785]
[1723270078224,0.004,60469.0,60468.0,0.37682185]
[1723270078857,0.002,60469.0,60468.0,0.37682185]
[1723270079393,0.004,60469.0,60468.0,0.37682185]
[1723270079625,0.002,60469.0,60468.0,0.37682186]
[1723270079838,0.165364,60473.0,60469.0,0.165373]
[1723270080095,0.03012593,60472.0,60471.0,0.1391]
[1723270080337,0.03012593,60472.0,60471.0,0.44022186]
[1723270080338,0.19549093,60472.0,60471.0,0.44022186]
[1723270080650,0.03012593,60472.0,60471.0,0.44022186]
[1723270080864,0.03010717,60472.0,60471.0,0.30291492]
[1723270080997,0.03010717,60472.0,60471.0,0.4402218]
[1723270081396,0.0301133,60472.0,60471.0,0.4402218]
[1723270083087,0.0331133,60472.0,60471.0,0.4402218]
[1723270083290,0.1954783,60472.0,60471.0,0.4402218]
[1723270083506,1.1219403,60472.0,60471.0,0.13730688]
[1723270083702,1.72340354,60472.0,60471.0,0.13730688]
[1723270083862,1.72340354,60472.0,60465.0,0.0009141]
[1723270083863,1.306174,60466.0,60465.0,0.0009141]
[1723270084064,1.579919,60466.0,60465.0,0.0009141]
[1723270084318,1.53163376,60466.0,60465.0,0.0009141]
[1723270084485,1.6317091,60466.0,60465.0,0.0009141]
[1723270084652,1.68005817,60466.0,60465.0,0.0009141]
[1723270085272,1.6417091,60466.0,60465.0,0.0009141]
[1723270086112,1.6487091,60466.0,60465.0,0.0019141]
[1723270086515,1.6387091,60466.0,60465.0,0.0019141]
[1723270086921,1.6447091,60466.0,60465.0,0.0029141]
[1723270088456,1.76837461,60466.0,60465.0,0.0029141]
[1723270089606,1.6447091,60466.0,60465.0,0.0029141]
[1723270090634,1.74359839,60466.0,60465.0,0.0029141]
[1723270090854,1.71340975,60466.0,60465.0,0.0029141]
[1723270091056,1.74371794,60466.0,60465.0,0.0029141]
[1723270091403,1.74371613,60466.0,60465.0,0.0029141]
[1723270092295,1.75371613,60466.0,60465.0,0.0029141]
[1723270092647,1.65482696,60466.0,60465.0,0.0029141]
[1723270093046,1.64482696,60466.0,60465.0,0.0029141]
[1723270093485,1.5236116,60466.0,60465.0,0.0029141]
[1723270093596,1.4144805,60466.0,60465.0,0.0029141]
[1723270098025,1.4143976,60466.0,60465.0,0.0029141]
[1723270098606,1.0836336,60466.0,60465.0,0.0029141]
[1723270098770,1.0836336,60466.0,60465.0,0.0658141]
[1723270100164,1.0836336,60466.0,60465.0,0.0029141]
[1723270100882,1.0844646,60466.0,60465.0,0.0029141]
[1723270101484,1.08433956,60466.0,60465.0,0.0029141]
[1723270102025,1.08433972,60466.0,60465.0,0.0029141]
[1723270103873,0.23522394,60466.0,60465.0,0.0799141]
[1723270104010,0.509977,60466.0,60465.0,0.1464141]
[1723270104213,0.509977,60466.0,60465.0,0.17548858]
[1723270104866,0.509977,60466.0,60465.0,0.1464141]
[1723270105109,0.509977,60466.0,60465.0,0.17548858]
[1723270105978,0.50971252,60466.0,60465.0,0.17548858]
[1723270106898,0.84047652,60466.0,60465.0,0.17548858]
[1723270107131,0.84047652,60466.0,60465.0,0.1464141]
[1723270108245,0.87073775,60466.0,60465.0,0.1464141]
[1723270108639,0.87073905,60466.0,60465.0,0.1464141]
[1723270109395,0.53997505,60466.0,60465.0,0.1464141]
[1723270109803,0.53997505,60466.0,60465.0,0.17545839]
[1723270112357,0.53996455,60466.0,60465.0,0.17545839]
[1723270112889,0.53996422,60466.0,60465.0,0.17545839]
[1723270117674,0.0440827,60466.0,60465.0,0.17545839]
[1723270117827,0.013831,60466.0,60465.0,0.97275374]
[1723270118401,0.013831,60466.0,60465.0,1.30352274]
[1723270119256,0.007831,60466.0,60465.0,1.30252274]
[1723270119428,0.000831,60466.0,60465.0,1.30152274]
[1723270119627,0.000831,60466.0,60465.0,1.30252274]
[1723270120055,0.000831,60466.0,60465.0,1.30152274]
[1723270120411,0.000831,60466.0,60465.0,1.30452274]
[1723270121042,0.000831,60466.0,60465.0,1.30652274]
[1723270121852,0.000831,60466.0,60465.0,1.30352274]
[1723270122012,0.000831,60466.0,60465.0,1.30652274]
[1723270122556,0.000831,60466.0,60465.0,1.30452274]
[1723270122759,0.000831,60466.0,60465.0,1.30652274]
[1723270122907,0.000831,60466.0,60465.0,1.16919531]
[1723270123114,0.000831,60466.0,60465.0,1.30650742]
[1723270124317,0.000831,60466.0,60465.0,1.63727642]
[1723270124537,0.000831,60466.0,60465.0,1.81721821]
[1723270124742,0.000831,60466.0,60465.0,2.05747592]
[1723270125146,0.000831,60466.0,60465.0,2.06747592]
[1723270125348,0.000831,60466.0,60465.0,2.44124492]
[1723270125549,0.000831,60466.0,60465.0,2.52124492]
[1723270126055,0.000831,60466.0,60465.0,2.51924492]
[1723270126264,0.000831,60466.0,60465.0,2.53624492]
[1723270126570,0.000831,60466.0,60465.0,2.52029998]
[1723270126747,0.000831,60466.0,60465.0,2.54329998]
[1723270126953,0.000831,60466.0,60465.0,2.51829998]
[1723270127209,0.001831,60466.0,60465.0,2.52429998]
[1723270127617,0.000831,60466.0,60465.0,2.52829998]
[1723270127766,0.000831,60466.0,60465.0,2.51829998]
[1723270128399,0.000831,60466.0,60465.0,2.6417389]
[1723270128602,0.000831,60466.0,60465.0,2.6587389]
[1723270128803,0.000831,60466.0,60465.0,2.72593116]
[1723270129207,0.000831,60466.0,60465.0,2.73793116]
[1723270129424,0.000831,60466.0,60465.0,2.6517389]
[1723270129630,0.000831,60466.0,60465.0,3.2817389]
[1723270129829,0.000831,60472.0,60471.0,1.500316]
[1723270130029,0.000831,60479.0,60478.0,0.496047]
[1723270130233,0.000831,60479.0,60478.0,2.26658195]
[1723270130465,0.000831,60479.0,60478.0,2.64597699]
[1723270130944,0.000831,60479.0,60478.0,2.64797699]
[1723270131114,0.000831,60479.0,60478.0,3.20797699]
[1723270131339,0.000831,60479.0,60478.0,3.02794724]
[1723270131655,0.000831,60479.0,60478.0,2.48194724]
[1723270131855,0.000831,60479.0,60478.0,2.46794724]
[1723270132271,0.000831,60479.0,60478.0,2.48194724]
[1723270132472,0.000831,60479.0,60478.0,3.38577524]
[1723270132840,0.000831,60479.0,60478.0,3.39777524]
[1723270133360,0.000831,60479.0,60478.0,3.26043832]
[1723270133506,0.000831,60479.0,60478.0,3.3836711]
[1723270133711,0.000831,60479.0,60478.0,3.3716711]
[1723270133875,0.000831,60479.0,60478.0,3.38567149]
[1723270134885,0.000831,60479.0,60478.0,3.40970692]
[1723270136123,0.000831,60479.0,60478.0,3.40970675]
[1723270137028,0.000831,60479.0,60478.0,3.40970665]
[1723270139375,0.00831,60497.0,60481.0,1.661369]
[1723270139592,0.00831,60497.0,60481.0,2.82891672]
[1723270139797,0.00831,60497.0,60481.0,2.85732211]
[1723270140628,0.00831,60497.0,60481.0,2.8713228]
[1723270141538,0.00831,60497.0,60481.0,2.8853228]
[1723270141737,0.00831,60497.0,60481.0,2.8633228]
[1723270142520,0.00831,60497.0,60481.0,2.8533228]
[1723270142720,0.065,60494.0,60481.0,2.8633228]
[1723270142927,0.0795,60495.0,60481.0,2.8733228]
[1723270143107,0.0795,60495.0,60481.0,2.8633228]
[1723270143543,0.0795,60495.0,60481.0,2.86332528]
[1723270143746,0.0795,60495.0,60481.0,2.84932528]
[1723270144534,0.0795,60495.0,60481.0,2.86332528]
[1723270144666,0.0795,60495.0,60481.0,2.84932528]
[1723270145066,0.0795,60495.0,60481.0,2.86332528]
[1723270145269,0.0795,60495.0,60481.0,2.84932528]
[1723270145704,0.0795,60495.0,60481.0,2.86332528]
[1723270145855,0.0795,60495.0,60481.0,2.84932528]
[1723270146297,0.0795,60495.0,60481.0,2.83532528]
[1723270146666,0.0795,60495.0,60481.0,2.71208931]
[1723270146872,0.0795,60495.0,60481.0,2.84932543]
[1723270148569,0.0795,60495.0,60481.0,2.86332543]
[1723270149132,0.07331,60497.0,60481.0,2.86332543]
[1723270149468,0.060831,60482.0,60481.0,3.12348805]
[1723270150265,0.060831,60482.0,60481.0,2.74608931]
[1723270150440,0.060831,60482.0,60481.0,3.12548776]
[1723270150648,0.060831,60482.0,60481.0,3.45616976]
[1723270152556,0.060831,60482.0,60481.0,3.6364614]
[1723270153116,0.060831,60482.0,60481.0,3.45616976]
[1723270153323,0.060831,60482.0,60481.0,3.6364614]
[1723270153864,0.060831,60482.0,60481.0,3.63646038]
[1723270154339,0.060831,60482.0,60481.0,3.07877131]
[1723270154529,0.060831,60482.0,60481.0,3.63603799]
[1723270156596,0.03485179,60482.0,60481.0,3.63603799]
[1723270156952,0.03485179,60482.0,60481.0,3.73944559]
[1723270157461,0.03485179,60482.0,60481.0,3.73944384]
[1723270158415,0.03485179,60482.0,60481.0,3.83852777]
[1723270159308,0.03485179,60482.0,60481.0,3.82860056]
[1723270160915,0.03485179,60482.0,60481.0,3.18217891]
[1723270161112,0.03485179,60482.0,60481.0,3.73929968]
[1723270161320,0.03485179,60482.0,60481.0,3.82846672]
[1723270162276,0.03485179,60482.0,60481.0,3.82938082]
[1723270162752,0.03485179,60482.0,60481.0,3.36319882]
[1723270162973,0.03485179,60482.0,60481.0,3.38753178]
[1723270164570,0.03485179,60482.0,60481.0,3.38733857]
[1723270164718,0.000831,60482.0,60481.0,3.38733857]
[1723270164965,0.000831,60482.0,60481.0,2.89902775]
[1723270165303,0.000831,60482.0,60481.0,3.3871948]
[1723270166166,0.000831,60482.0,60481.0,3.21565325]
[1723270166371,0.000831,60482.0,60481.0,3.38719589]
[1723270167131,0.000831,60482.0,60481.0,3.32579589]
[1723270168049,0.000831,60482.0,60481.0,2.76901101]
[1723270168244,0.000831,60482.0,60481.0,3.32567565]
[1723270168457,0.000831,60482.0,60481.0,3.32767565]
[1723270168664,0.000831,60482.0,60481.0,3.32567565]
[1723270169270,0.000831,60482.0,60481.0,3.32767565]
[1723270169470,0.000831,60482.0,60481.0,3.42611863]
[1723270170625,0.000831,60482.0,60481.0,3.45072937]
[1723270171675,0.000831,60482.0,60481.0,3.32767565]
[1723270172662,0.000831,60482.0,60481.0,3.39307565]
[1723270172819,0.000831,60482.0,60481.0,3.41307565]
[1723270173018,0.000831,60482.0,60481.0,3.39307565]
[1723270173319,0.000831,60482.0,60481.0,3.41307565]
[1723270175024,0.000831,60482.0,60481.0,3.74375765]
[1723270175341,0.000831,60482.0,60481.0,3.83358384]
[1723270175547,0.000831,60482.0,60481.0,3.50290184]
[1723270175888,0.000831,60482.0,60481.0,3.74436988]
[1723270176088,0.000831,60482.0,60481.0,3.50290026]
[1723270176221,0.000831,60482.0,60481.0,3.41368788]
[1723270176426,0.000831,60482.0,60481.0,3.74436988]
[1723270176623,0.000831,60482.0,60481.0,3.50290026]
[1723270176878,0.000831,60482.0,60481.0,3.41368788]
[1723270177391,0.000831,60482.0,60481.0,3.74436988]
[1723270177605,0.000831,60482.0,60481.0,3.83358226]
[1723270178512,0.000831,60482.0,60481.0,3.83371034]
[1723270178943,0.000831,60482.0,60481.0,3.35863383]
[1723270179075,0.000831,60482.0,60481.0,3.74453717]
[1723270179280,0.000831,60482.0,60481.0,3.83377919]
[1723270180780,0.000831,60482.0,60481.0,3.50309719]
[1723270181026,0.000831,60482.0,60481.0,3.41385517]
[1723270181650,0.000831,60482.0,60481.0,3.74453717]
[1723270181805,0.000831,60482.0,60481.0,3.50309719]
[1723270182013,0.000831,60482.0,60481.0,3.41385517]
[1723270182273,0.000831,60482.0,60481.0,3.50309719]
[1723270182449,0.00831,60497.0,60496.0,1.1571]
[1723270182681,0.00831,60497.0,60496.0,1.50096927]
[1723270182979,0.00831,60497.0,60496.0,1.6666012]
[1723270183108,0.00831,60497.0,60496.0,1.90674953]
[1723270183634,0.00831,60497.0,60496.0,2.36416257]
[1723270183834,0.00831,60497.0,60496.0,2.56939958]
[1723270184047,0.00831,60497.0,60496.0,2.70989958]
[1723270184246,0.00831,60497.0,60496.0,2.71966877]
[1723270185038,0.00831,60497.0,60496.0,2.65936877]
[1723270185476,0.00831,60497.0,60496.0,2.56013176]
[1723270186455,0.00831,60497.0,60496.0,2.00228619]
[1723270186658,0.00831,60497.0,60496.0,2.56005939]
[1723270187482,0.00831,60497.0,60496.0,2.63442693]
[1723270188343,0.00831,60497.0,60496.0,2.63456161]
[1723270190375,0.00831,60497.0,60496.0,2.14526395]
[1723270190620,0.00831,60497.0,60496.0,2.63497377]
[1723270191237,0.000831,60502.0,60501.0,0.01]
[1723270191429,0.000831,60502.0,60501.0,2.36866744]
[1723270191573,0.000831,60502.0,60501.0,2.39789843]
[1723270191779,0.000831,60502.0,60501.0,2.72847143]
[1723270192413,0.000831,60502.0,60501.0,2.83052686]
[1723270193281,0.000831,60502.0,60501.0,2.85352686]
[1723270193479,0.000831,60502.0,60501.0,2.73447143]
[1723270193689,0.000831,60502.0,60501.0,3.39847143]
[1723270193894,0.000831,60502.0,60501.0,3.40847143]
[1723270194185,0.000831,60502.0,60501.0,3.41615794]
[1723270194387,0.000831,60502.0,60501.0,3.40615794]
[1723270194588,0.000831,60502.0,60501.0,3.48341856]
[1723270195475,0.000831,60502.0,60501.0,3.49341856]
[1723270196481,0.000831,60502.0,60501.0,3.40815794]
[1723270196688,0.000831,60502.0,60501.0,3.30475513]
[1723270196890,0.000831,60502.0,60501.0,3.30775513]
[1723270197263,0.000831,60502.0,60501.0,3.31875513]
[1723270197627,0.000831,60502.0,60501.0,3.31874525]
[1723270198048,0.000831,60502.0,60501.0,2.93223824]
[1723270198250,0.000831,60502.0,60501.0,3.31893871]
[1723270199344,0.000831,60502.0,60501.0,3.16843871]
[1723270200098,0.000831,60502.0,60501.0,3.05493871]
[1723270200295,0.000831,60502.0,60501.0,3.14543871]
[1723270200859,0.000831,60502.0,60501.0,3.14543973]
[1723270201809,0.000831,60502.0,60501.0,3.14544234]
[1723270202137,0.000831,60502.0,60501.0,3.25134234]
[1723270202880,0.000831,60502.0,60501.0,3.25334234]
[1723270203223,0.000831,60502.0,60501.0,3.28334234]
[1723270203579,0.000831,60502.0,60501.0,3.26334234]
[1723270203782,0.000831,60502.0,60501.0,3.26134234]
[1723270204789,0.00560408,60508.0,60507.0,0.16527]
[1723270204998,0.00560408,60508.0,60507.0,0.7968256]
[1723270205149,0.00560408,60508.0,60507.0,1.15559866]
[1723270205504,0.00560408,60508.0,60507.0,1.48613866]
[1723270205707,0.00560408,60508.0,60507.0,1.83967866]
[1723270205936,0.00560408,60508.0,60507.0,3.039189]
[1723270206118,0.00560408,60508.0,60507.0,2.501189]
[1723270206339,0.00560408,60508.0,60507.0,3.079189]
[1723270206526,0.00560408,60508.0,60507.0,2.945689]
[1723270206736,0.08250408,60508.0,60507.0,2.945689]
[1723270207089,0.08250408,60508.0,60507.0,2.940689]
[1723270207326,0.08250408,60508.0,60507.0,2.948689]
[1723270207679,0.08250408,60508.0,60507.0,2.954689]
[1723270207938,0.08250408,60508.0,60507.0,2.948689]
[1723270208141,0.08250408,60508.0,60507.0,2.957689]
[1723270209452,0.08250408,60508.0,60507.0,2.95768753]
[1723270210240,0.08250408,60508.0,60507.0,2.37768753]
[1723270210433,0.08250408,60508.0,60507.0,2.38737964]
[1723270210649,0.08250408,60508.0,60507.0,2.05683596]
[1723270210847,0.08250408,60508.0,60507.0,1.63582065]
[1723270211053,0.08250408,60508.0,60507.0,1.61282065]
[1723270212896,0.08250408,60508.0,60507.0,1.47563009]
[1723270213078,0.08250408,60508.0,60507.0,1.61283144]
[1723270213273,0.08250408,60508.0,60507.0,1.7920698]
[1723270214074,0.08250408,60508.0,60507.0,2.03216277]
[1723270214280,0.00560408,60508.0,60507.0,2.03216277]
[1723270215527,0.00560408,60508.0,60507.0,1.45371777]
[1723270216962,0.00560408,60508.0,60507.0,1.45363119]
[1723270219343,0.00560408,60508.0,60507.0,1.56713119]
[1723270220756,0.00560408,60508.0,60507.0,0.96578061]
[1723270221034,0.00560408,60508.0,60507.0,1.45326299]
[1723270221252,0.00560408,60508.0,60507.0,1.13726942]
[1723270221453,0.00560408,60508.0,60507.0,1.45326291]
[1723270221805,0.00560408,60508.0,60507.0,1.45417701]
[1723270222401,0.00560408,60508.0,60507.0,1.45419777]
[1723270222614,0.00560408,60508.0,60507.0,1.56769777]
[1723270223436,0.00560408,60508.0,60507.0,1.64629777]
[1723270223641,0.00560408,60508.0,60507.0,1.74967403]
[1723270223919,0.00560408,60508.0,60507.0,1.77267403]
[1723270224568,0.00560408,60508.0,60507.0,1.77267358]
[1723270224805,0.00560408,60508.0,60507.0,1.83407358]
[1723270227151,0.00560408,60508.0,60507.0,2.50407358]